bitfinex-derivatives/quotes_BTCF0:USTF0_20241122
["timestamp","ask_amount","ask_price","bid_price","bid_amount"]
[1732301646160,0.050453,99018.0,99003.0,0.03215668]
[1732301646353,0.050453,99017.0,99004.0,0.15173305]
[1732301646558,0.050452,99019.0,99004.0,0.15173305]
[1732301647061,0.050452,99019.0,99010.0,0.3608]
[1732301647248,0.02014093,99025.0,99004.0,0.15173305]
[1732301647453,0.02014093,99025.0,99010.0,0.3608]
[1732301647653,0.050449,99024.0,99010.0,0.3608]
[1732301647853,0.02014093,99025.0,99010.0,0.3608]
[1732301648050,0.05045,99024.0,99010.0,0.3608]
[1732301648258,0.02014093,99025.0,99010.0,0.3608]
[1732301649154,0.02014093,99025.0,99019.0,0.3608]
[1732301649554,0.02014093,99025.0,99010.0,0.3608]
[1732301649754,0.02014093,99025.0,99003.0,0.03215668]
[1732301650049,0.02014093,99025.0,99004.0,0.15073361]
[1732301651566,0.050454,99015.0,99004.0,0.15073361]
[1732301652063,0.02014093,99025.0,99004.0,0.15073361]
[1732301652257,0.02014093,99025.0,99010.0,0.50745709]
[1732301652649,0.3608,99032.0,99020.0,0.3608]
[1732301652849,0.00151534,99039.0,99028.0,0.3608]
[1732301653059,0.00151534,99039.0,99029.0,0.0315]
[1732301653258,0.00151534,99039.0,99038.0,0.3608]
[1732301653468,0.00151534,99039.0,99030.0,0.3608]
[1732301653855,0.00151534,99039.0,99031.0,0.15066413]
[1732301657449,0.00151534,99039.0,99031.0,0.18129463]
[1732301657858,0.00151534,99039.0,99038.0,0.3608]
[1732301659565,0.14665709,99060.0,99038.0,0.3608]
[1732301659866,0.050436,99052.0,99038.0,0.3608]
[1732301660055,0.050437,99049.0,99038.0,0.3608]
[1732301660257,0.050438,99047.0,99038.0,0.3608]
[1732301660455,0.050435,99052.0,99038.0,0.3608]
[1732301660660,0.14665709,99060.0,99038.0,0.3608]
[1732301661163,0.050439,99046.0,99038.0,0.3608]
[1732301661461,0.02014377,99049.0,99038.0,0.3608]
[1732301661853,0.07058077,99049.0,99038.0,0.3608]
[1732301662056,0.02014377,99049.0,99038.0,0.3608]
[1732301662251,0.050438,99048.0,99038.0,0.3608]
[1732301662464,0.02014377,99049.0,99038.0,0.3608]
[1732301665257,0.07058077,99049.0,99038.0,0.3608]
[1732301665463,0.02014377,99049.0,99038.0,0.3608]
[1732301666371,8.353e-05,99063.0,99046.0,0.3608]
[1732301666562,0.05043,99062.0,99046.0,0.3608]
[1732301666759,8.353e-05,99063.0,99046.0,0.3608]
[1732301666966,0.02014482,99053.0,99046.0,0.3608]
[1732301668266,8.353e-05,99063.0,99047.0,0.15068807]
[1732301668569,8.353e-05,99063.0,99058.0,0.3608]
[1732301668962,8.353e-05,99063.0,99059.0,0.0333]
[1732301669360,8.353e-05,99063.0,99059.0,0.3941]
[1732301669567,8.353e-05,99063.0,99060.0,0.1508483]
[1732301670565,0.0309,99097.0,99060.0,0.1508483]
[1732301670771,0.0615,99105.0,99077.0,0.3608]
[1732301671268,0.050412,99098.0,99078.0,0.15233155]
[1732301671570,0.02986103,99101.0,99085.0,0.3608]
[1732301671866,0.02013942,99090.0,99085.0,0.3608]
[1732301672068,0.02986103,99101.0,99085.0,0.3608]
[1732301672265,0.19771461,99100.0,99085.0,0.3608]
[1732301672567,0.1,99100.0,99085.0,0.3608]
[1732301673274,0.19771461,99100.0,99085.0,0.3608]
[1732301673778,0.02013942,99098.0,99085.0,0.3608]
[1732301674364,0.3608,99097.0,99085.0,0.3608]
[1732301674566,0.411212,99097.0,99085.0,0.39155008]
[1732301674871,0.02013942,99098.0,99085.0,0.39155008]
[1732301680568,0.07055142,99098.0,99085.0,0.39155008]
[1732301680777,0.02013942,99098.0,99085.0,0.39155008]
[1732301681671,0.050413,99096.0,99085.0,0.39155008]
[1732301681977,0.050414,99094.0,99085.0,0.39155008]
[1732301682579,0.02013942,99098.0,99093.0,0.3608]
[1732301683489,0.02013942,99098.0,99085.0,0.03075008]
[1732301683778,0.02013942,99098.0,99084.0,0.3608]
[1732301685773,0.07055142,99098.0,99084.0,0.3608]
[1732301685975,0.02013942,99098.0,99084.0,0.3608]
[1732301686175,0.050413,99096.0,99084.0,0.3608]
[1732301686471,0.02013942,99098.0,99084.0,0.3608]
[1732301686680,0.050414,99094.0,99084.0,0.3608]
[1732301686875,0.02013942,99098.0,99084.0,0.3608]
[1732301687770,0.07055142,99098.0,99084.0,0.3608]
[1732301688678,0.050412,99097.0,99084.0,0.3608]
[1732301688878,0.02013942,99098.0,99084.0,0.3608]
[1732301689272,0.050413,99096.0,99084.0,0.3608]
[1732301689468,0.02013942,99098.0,99084.0,0.3608]
[1732301689672,0.050413,99095.0,99082.0,0.3608]
[1732301689873,0.09771461,99090.0,99082.0,0.3608]
[1732301692787,0.050419,99083.0,99078.0,0.0318]
[1732301693083,0.050418,99087.0,99074.0,0.3608]
[1732301693380,0.05042,99082.0,99074.0,0.3608]
[1732301693887,0.38093223,99089.0,99074.0,0.3608]
[1732301694185,0.02013223,99089.0,99074.0,0.3608]
[1732301694382,0.02013223,99089.0,99088.0,0.3608]
[1732301694580,0.02013223,99089.0,99075.0,0.0324]
[1732301695084,0.07054823,99089.0,99075.0,0.0324]
[1732301696079,0.02013223,99089.0,99075.0,0.0324]
[1732301696784,0.02013223,99089.0,99082.0,0.3608]
[1732301698273,0.02013223,99089.0,99083.0,0.0301]
[1732301699382,0.02013223,99089.0,99082.0,0.3608]
[1732301699682,0.02013223,99089.0,99075.0,0.0324]
[1732301699885,0.09771461,99085.0,99075.0,0.0324]
[1732301700186,0.05042,99082.0,99076.0,0.15054436]
[1732301700386,0.09771461,99085.0,99072.0,0.39108393]
[1732301700587,0.02013223,99089.0,99073.0,0.15054436]
[1732301700781,0.38093223,99089.0,99072.0,0.3608]
[1732301700987,0.050419,99084.0,99072.0,0.3608]
[1732301701686,0.38093223,99089.0,99072.0,0.3608]
[1732301701881,0.050422,99077.0,99055.0,0.065]
[1732301702085,0.05043,99063.0,99055.0,0.0325]
[1732301702289,0.050432,99058.0,99056.0,0.15119074]
[1732301702494,0.050432,99058.0,99048.0,0.3608]
[1732301702495,0.050428,99057.0,99050.0,0.03017398]
[1732301702791,0.050422,99068.0,99049.0,0.0325]
[1732301702992,0.45851461,99070.0,99049.0,0.0325]
[1732301703292,0.48925359,99070.0,99049.0,0.0325]
[1732301703586,0.050425,99062.0,99049.0,0.0325]
[1732301703787,0.050422,99068.0,99055.0,0.3608]
[1732301703987,0.050425,99062.0,99055.0,0.3608]
[1732301704291,0.050427,99059.0,99049.0,0.0325]
[1732301704688,0.39153898,99070.0,99049.0,0.0325]
[1732301704985,0.050429,99054.0,99049.0,0.0325]
[1732301705187,0.24945852,99059.0,99049.0,0.0325]
[1732301705379,0.050431,99050.0,99049.0,0.0325]
[1732301707488,0.15412,99061.0,99049.0,0.0325]
[1732301707695,0.3608,99098.0,99049.0,0.0325]
[1732301707696,0.3608,99073.0,99058.0,0.3608]
[1732301707989,0.15412,99072.0,99055.0,0.3608]
[1732301708182,0.02013666,99059.0,99049.0,0.0325]
[1732301708390,0.050431,99050.0,99049.0,0.0325]
[1732301710698,0.03068759,99057.0,99043.0,0.03077947]
[1732301710997,0.050436,99040.0,99038.0,0.3608]
[1732301714285,0.050437,99039.0,99038.0,0.3608]
[1732301715194,0.1504,99055.0,99038.0,0.3608]
[1732301715589,0.09771461,99050.0,99038.0,0.3608]
[1732301715795,0.050437,99039.0,99038.0,0.3608]
[1732301718702,0.07058157,99039.0,99038.0,0.3608]
[1732301719303,0.02014457,99039.0,99038.0,0.3608]
[1732301723191,0.12542913,99122.0,99038.0,0.3608]
[1732301723192,0.02014457,99055.0,99038.0,0.3608]
[1732301723393,0.02014457,99055.0,99040.0,0.09771461]
[1732301723997,0.050429,99054.0,99040.0,0.09771461]
[1732301724193,0.050431,99051.0,99038.0,0.3608]
[1732301724598,0.02014457,99071.0,99050.0,0.3608]
[1732301724899,0.02014457,99071.0,99062.0,0.3608]
[1732301725103,0.02014457,99071.0,99070.0,0.3608]
[1732301725988,0.02014457,99071.0,99063.0,0.0326]
[1732301726394,0.050423,99066.0,99063.0,0.0326]
[1732301726799,0.07056557,99071.0,99063.0,0.0326]
[1732301727001,0.050422,99068.0,99063.0,0.0326]
[1732301727194,0.050423,99066.0,99063.0,0.0326]
[1732301727503,0.050424,99065.0,99063.0,0.0326]
[1732301727696,0.050423,99067.0,99063.0,0.0326]
[1732301727999,0.3608,99070.0,99063.0,0.0326]
[1732301728296,0.050421,99070.0,99063.0,0.0326]
[1732301728505,0.02014457,99071.0,99063.0,0.0326]
[1732301729400,0.050424,99064.0,99063.0,0.0326]
[1732301729599,0.050424,99064.0,99051.0,0.0627]
[1732301729798,0.050424,99064.0,99051.0,0.0933094]
[1732301730297,0.050423,99066.0,99058.0,0.3608]
[1732301730601,0.02014457,99071.0,99058.0,0.3608]
[1732301730902,0.28094457,99073.0,99058.0,0.3608]
[1732301731100,0.02013931,99071.0,99058.0,0.3608]
[1732301731296,0.02013931,99071.0,99060.0,0.09771461]
[1732301731604,0.02013931,99071.0,99067.0,0.3608]
[1732301731798,0.02013931,99071.0,99060.0,0.09771461]
[1732301732194,0.02013931,99071.0,99066.0,0.3608]
[1732301733604,0.00151435,99078.0,99066.0,0.3608]
[1732301733805,0.00151435,99078.0,99068.0,0.09771461]
[1732301734192,0.00151435,99078.0,99066.0,0.39207542]
[1732301735406,0.00151435,99078.0,99068.0,0.09771461]
[1732301735908,0.050415,99082.0,99066.0,0.39339542]
[1732301736208,0.050415,99082.0,99066.0,0.39207542]
[1732301736392,0.050415,99081.0,99066.0,0.39207542]
[1732301736792,0.050416,99080.0,99066.0,0.39207542]
[1732301737103,0.050414,99084.0,99066.0,0.39207542]
[1732301737707,0.05041,99092.0,99070.0,0.09771461]
[1732301738009,0.050411,99090.0,99070.0,0.09771461]
[1732301738506,0.07055657,99087.0,99070.0,0.09771461]
[1732301738699,0.02014457,99087.0,99070.0,0.09771461]
[1732301739106,0.02014457,99087.0,99074.0,0.3608]
[1732301739296,0.02014457,99087.0,99075.0,0.0617]
[1732301739498,0.02014457,99087.0,99083.0,0.3608]
[1732301740006,0.1,99100.0,99083.0,0.3608]
[1732301740300,0.1,99100.0,99091.0,0.3608]
[1732301741105,0.1,99100.0,99099.0,0.3608]
[1732301744395,0.1,99100.0,99099.0,0.51254193]
[1732301744595,0.050397,99118.0,99099.0,0.51254193]
[1732301744801,0.02014457,99119.0,99107.0,0.3608]
[1732301745001,0.02014457,99119.0,99108.0,0.0328]
[1732301745403,0.050399,99114.0,99108.0,0.0328]
[1732301746303,0.38094457,99119.0,99108.0,0.0328]
[1732301746801,0.050397,99117.0,99108.0,0.0328]
[1732301747001,0.050398,99115.0,99108.0,0.0328]
[1732301747200,0.02014457,99119.0,99108.0,0.0328]
[1732301747602,0.050397,99118.0,99108.0,0.0328]
[1732301747908,0.050397,99117.0,99108.0,0.0328]
[1732301748116,0.02014457,99119.0,99115.0,0.3608]
[1732301749011,0.050392,99127.0,99115.0,0.3608]
[1732301749405,0.0314,99138.0,99115.0,0.3608]
[1732301749604,0.0314,99138.0,99123.0,0.3608]
[1732301749800,0.083389,99133.0,99124.0,0.3608]
[1732301750208,0.033,99133.0,99124.0,0.3608]
[1732301750715,0.050389,99134.0,99124.0,0.3608]
[1732301751022,0.02012604,99127.0,99124.0,0.3608]
[1732301751203,0.050387,99137.0,99124.0,0.3608]
[1732301751605,0.06199532,99138.0,99124.0,0.3608]
[1732301751606,0.07053257,99135.0,99124.0,0.3608]
[1732301751807,0.02014457,99135.0,99124.0,0.3608]
[1732301752208,0.02014457,99135.0,99124.0,0.3909801]
[1732301755005,0.02014457,99135.0,99125.0,0.15042043]
[1732301755914,9.68e-05,99136.0,99125.0,0.15042043]
[1732301756313,9.68e-05,99136.0,99127.0,0.3608]
[1732301757507,9.68e-05,99136.0,99135.0,0.3608]
[1732301758117,0.09771461,99170.0,99135.0,0.6634]
[1732301758327,0.41122782,99167.0,99150.0,0.09771461]
[1732301758508,0.050374,99162.0,99150.0,0.09771461]
[1732301758715,0.38094457,99167.0,99151.0,0.0944]
[1732301758913,0.050373,99165.0,99151.0,0.0944]
[1732301759110,0.38094457,99167.0,99152.0,7.997e-05]
[1732301759318,0.3608,99167.0,99155.0,0.3608]
[1732301759523,0.3608,99167.0,99152.0,0.15078603]
[1732301759830,0.050379,99153.0,99152.0,7.997e-05]
[1732301760918,0.07049972,99153.0,99152.0,7.997e-05]
[1732301762710,0.050382,99148.0,99140.0,0.3608]
[1732301762917,0.050385,99142.0,99140.0,0.39208621]
[1732301763119,0.050385,99142.0,99140.0,0.03128621]
[1732301763318,0.0641,99147.0,99130.0,0.00151289]
[1732301763519,0.05039,99132.0,99130.0,0.00151289]
[1732301763919,0.30264,99131.0,99130.0,0.00151289]
[1732301765013,0.30264,99131.0,99123.0,0.03031253]
[1732301765216,0.05039,99132.0,99106.0,0.3608]
[1732301765419,0.050398,99115.0,99106.0,0.3608]
[1732301765629,0.050399,99114.0,99106.0,0.3608]
[1732301765813,0.050399,99114.0,99106.0,0.39190628]
[1732301766037,0.050402,99108.0,99106.0,0.39190628]
[1732301766321,0.3608,99107.0,99106.0,0.03110628]
[1732301766520,0.3608,99107.0,99094.0,0.3608]
[1732301766723,0.050408,99096.0,99094.0,0.3608]
[1732301766923,0.050408,99096.0,99081.0,0.0315]
[1732301767524,0.050408,99096.0,99082.0,5.434e-05]
[1732301767525,0.050414,99083.0,99082.0,5.434e-05]
[1732301768926,0.3608,99091.0,99082.0,5.434e-05]
[1732301769123,0.050413,99087.0,99082.0,5.434e-05]
[1732301769520,0.3608,99091.0,99082.0,5.434e-05]
[1732301769724,0.050413,99086.0,99082.0,5.434e-05]
[1732301769927,0.050414,99083.0,99082.0,5.434e-05]
[1732301770214,0.411214,99083.0,99082.0,5.434e-05]
[1732301772927,0.050414,99083.0,99082.0,5.434e-05]
[1732301773321,0.3608,99091.0,99082.0,5.434e-05]
[1732301773533,0.050414,99084.0,99082.0,5.434e-05]
[1732301774924,0.02013817,99083.0,99082.0,5.434e-05]
[1732301776731,0.0205724,99083.0,99082.0,5.434e-05]
[1732301781133,0.3813724,99083.0,99082.0,5.434e-05]
[1732301782523,0.05042,99071.0,99070.0,0.02985668]
[1732301782720,0.47908701,99083.0,99067.0,0.03]
[1732301782931,0.47908701,99083.0,99067.0,0.3908]
[1732301783129,0.36123423,99083.0,99067.0,0.3908]
[1732301783430,0.36123423,99083.0,99067.0,0.42089189]
[1732301783732,0.09771461,99080.0,99067.0,0.42089189]
[1732301783936,0.050419,99074.0,99067.0,0.42089189]
[1732301784231,0.09771461,99080.0,99067.0,0.42089189]
[1732301784427,0.050417,99078.0,99067.0,0.42089189]
[1732301784834,0.050418,99076.0,99067.0,0.42089189]
[1732301785336,0.09771461,99080.0,99067.0,0.42089189]
[1732301785529,0.050419,99074.0,99067.0,0.42089189]
[1732301785831,0.09771461,99080.0,99067.0,0.42089189]
[1732301786033,0.050418,99077.0,99067.0,0.42089189]
[1732301786334,0.050417,99078.0,99067.0,0.42089189]
[1732301786531,0.050422,99068.0,99067.0,0.06009189]
[1732301790432,0.050422,99068.0,99067.0,0.03009189]
[1732301790638,0.050428,99056.0,99043.0,0.033]
[1732301791732,0.09771461,99065.0,99043.0,0.033]
[1732301791929,0.050428,99056.0,99043.0,0.033]
[1732301792436,0.050428,99056.0,99055.0,0.3910816]
[1732301795132,0.02013668,99071.0,99055.0,0.3910816]
[1732301795333,0.02013668,99071.0,99064.0,0.3608]
[1732301795529,0.09771461,99080.0,99065.0,0.0325]
[1732301795738,0.050423,99066.0,99065.0,0.0325]
[1732301796048,0.050425,99063.0,99055.0,0.3910816]
[1732301796433,0.09771461,99075.0,99055.0,0.3910816]
[1732301796635,0.050422,99068.0,99055.0,0.3910816]
[1732301796932,0.09771461,99075.0,99055.0,0.3910816]
[1732301797337,0.050421,99070.0,99055.0,0.3910816]
[1732301797543,0.09771461,99075.0,99055.0,0.3910816]
[1732301797746,0.050425,99062.0,99055.0,0.3910816]
[1732301798036,0.050423,99066.0,99055.0,0.3910816]
[1732301798241,0.02014085,99073.0,99055.0,0.3910816]
[1732301798633,0.09771461,99065.0,99055.0,0.3910816]
[1732301798941,0.050426,99061.0,99055.0,0.3910816]
[1732301799532,0.02014085,99073.0,99055.0,0.3910816]
[1732301799739,0.050427,99059.0,99055.0,0.3910816]
[1732301800136,0.050427,99058.0,99055.0,0.3910816]
[1732301800440,0.050427,99059.0,99055.0,0.3910816]
[1732301801343,0.050424,99065.0,99055.0,0.3910816]
[1732301802138,0.050425,99062.0,99055.0,0.3910816]
[1732301802440,0.050425,99063.0,99055.0,0.3910816]
[1732301802945,0.050432,99049.0,99041.0,0.36216]
[1732301803144,0.050432,99049.0,99041.0,0.3608]
[1732301804744,0.3608,99055.0,99048.0,0.03258444]
[1732301804946,0.050429,99054.0,99048.0,0.00151442]
[1732301805133,0.3608,99055.0,99048.0,0.00151442]
[1732301805538,0.050431,99051.0,99048.0,0.00151442]
[1732301805738,0.050431,99051.0,99041.0,0.3608]
[1732301805934,0.050431,99051.0,99041.0,0.39118562]
[1732301806349,0.3608,99055.0,99041.0,0.39118562]
[1732301806542,0.05043,99053.0,99041.0,0.39118562]
[1732301807148,0.3608,99055.0,99041.0,0.39118562]
[1732301807450,0.050431,99051.0,99041.0,0.39118562]
[1732301808151,0.050433,99046.0,99041.0,0.39118562]
[1732301808851,0.050429,99054.0,99041.0,0.39118562]
[1732301809047,0.050432,99049.0,99041.0,0.39118562]
[1732301810054,0.050433,99046.0,99041.0,0.39118562]
[1732301810943,0.02014085,99059.0,99045.0,0.3608]
[1732301811143,0.00043423,99083.0,99045.0,0.3608]
[1732301811144,0.00043423,99083.0,99068.0,0.050422]
[1732301811344,0.00043423,99083.0,99071.0,0.05042]
[1732301811551,0.00043423,99083.0,99082.0,0.3608]
[1732301814653,0.00043423,99083.0,99082.0,0.39146711]
[1732301818755,0.00043423,99083.0,99082.0,0.69422711]
[1732301818950,0.02014457,99107.0,99090.0,0.09771461]
[1732301819150,0.02014457,99107.0,99098.0,0.3608]
[1732301820045,0.050405,99102.0,99098.0,0.3608]
[1732301820251,0.02014457,99107.0,99098.0,0.3608]
[1732301820545,0.02014457,99107.0,99098.0,0.39179092]
[1732301820749,0.050405,99102.0,99098.0,0.39179092]
[1732301820948,0.02014457,99107.0,99098.0,0.39179092]
[1732301821353,0.050405,99101.0,99098.0,0.39179092]
[1732301821554,0.050406,99099.0,99098.0,0.03099092]
[1732301821755,0.02014457,99107.0,99094.0,0.13392]
[1732301821956,0.050406,99100.0,99094.0,0.13392]
[1732301822148,0.02014457,99107.0,99094.0,0.13392]
[1732301822854,0.050406,99101.0,99094.0,0.13392]
[1732301823056,0.050407,99098.0,99094.0,0.13392]
[1732301823353,0.050404,99103.0,99094.0,0.16406186]
[1732301824348,0.07054657,99107.0,99094.0,0.16406186]
[1732301824561,0.050404,99104.0,99097.0,0.09771461]
[1732301824757,0.050404,99103.0,99097.0,0.09771461]
[1732301824953,0.050406,99100.0,99097.0,0.09771461]
[1732301825958,0.050408,99096.0,99094.0,0.16406186]
[1732301826151,0.02014457,99107.0,99094.0,0.16406186]
[1732301826358,0.050405,99101.0,99094.0,0.16406186]
[1732301826654,0.02014457,99107.0,99094.0,0.16406186]
[1732301826655,0.050406,99100.0,99094.0,0.16406186]
[1732301827061,0.02014457,99107.0,99094.0,0.16406186]
[1732301827257,0.050404,99103.0,99097.0,0.09771461]
[1732301827458,0.02014457,99107.0,99097.0,0.09771461]
[1732301827658,0.050405,99103.0,99097.0,0.09771461]
[1732301828158,0.050405,99101.0,99097.0,0.09771461]
[1732301828360,0.050405,99102.0,99097.0,0.09771461]
[1732301828557,0.02014457,99107.0,99097.0,0.09771461]
[1732301828757,0.050403,99105.0,99097.0,0.09771461]
[1732301828957,0.050407,99098.0,99097.0,0.09771461]
[1732301829260,0.02014457,99107.0,99094.0,0.16406186]
[1732301829261,0.050408,99095.0,99094.0,0.03014186]
[1732301829459,0.02014457,99107.0,99093.0,0.3608]
[1732301829460,0.050408,99096.0,99093.0,0.3608]
[1732301829663,0.050406,99099.0,99093.0,0.3608]
[1732301829866,0.050407,99098.0,99093.0,0.39120744]
[1732301830068,0.050407,99097.0,99093.0,0.39120744]
[1732301831465,0.02014457,99107.0,99093.0,0.39120744]
[1732301831967,0.050409,99095.0,99093.0,0.39120744]
[1732301832867,0.050409,99094.0,99093.0,0.39120744]
[1732301833162,0.07054657,99107.0,99073.0,0.13388]
[1732301833163,0.050414,99084.0,99073.0,0.13388]
[1732301833761,0.050414,99084.0,99077.0,0.39200428]
[1732301834159,0.0623,99093.0,99077.0,0.39200428]
[1732301834359,0.0328,99092.0,99080.0,0.09771461]
[1732301834762,0.050407,99099.0,99086.0,0.3608]
[1732301834961,0.02014457,99107.0,99089.0,0.09771461]
[1732301835166,0.02014457,99107.0,99097.0,0.09771461]
[1732301835463,0.02014457,99107.0,99090.0,0.09771461]
[1732301835667,0.02014457,99107.0,99097.0,0.09771461]
[1732301835864,0.050405,99102.0,99090.0,0.09771461]
[1732301836172,0.02014457,99107.0,99096.0,0.3608]
[1732301836467,0.02014457,99107.0,99090.0,0.09771461]
[1732301836773,0.050405,99102.0,99090.0,0.09771461]
[1732301837263,0.02014457,99107.0,99087.0,0.06318586]
[1732301837461,0.05041,99091.0,99087.0,0.03078586]
[1732301837664,0.02014457,99107.0,99083.0,0.3608]
[1732301837859,0.05041,99091.0,99083.0,0.3608]
[1732301838061,0.050403,99105.0,99083.0,0.3608]
[1732301838258,0.02013155,99098.0,99083.0,0.39105555]
[1732301838464,0.050412,99089.0,99083.0,0.39105555]
[1732301838666,0.050412,99087.0,99083.0,0.39105555]
[1732301839574,0.38093155,99098.0,99083.0,0.39105555]
[1732301840565,0.050414,99084.0,99083.0,0.39105555]
[1732301841072,0.050414,99084.0,99083.0,0.3608]
[1732301842477,0.050418,99075.0,99074.0,0.00151401]
[1732301842777,0.050418,99075.0,99048.0,0.3608]
[1732301842778,0.050429,99055.0,99048.0,0.3608]
[1732301843265,0.050429,99055.0,99054.0,0.0320037]
[1732301843466,0.050429,99055.0,99054.0,0.0014]
[1732301853568,0.050431,99050.0,99048.0,0.3608]
[1732301855772,0.050432,99049.0,99048.0,0.3608]
[1732301857277,0.02014258,99058.0,99048.0,0.3608]
[1732301857772,0.050431,99051.0,99048.0,0.3608]
[1732301858177,0.050432,99049.0,99048.0,0.3608]
[1732301859377,0.05043,99053.0,99048.0,0.3608]
[1732301859579,0.05043,99052.0,99049.0,0.0301]
[1732301859972,0.050431,99051.0,99049.0,0.0301]
[1732301860570,0.02014258,99058.0,99049.0,0.0301]
[1732301860767,0.050431,99050.0,99049.0,0.0301]
[1732301862876,0.050429,99055.0,99049.0,0.0301]
[1732301863073,0.050425,99063.0,99049.0,0.0301]
[1732301863284,0.3608,99066.0,99056.0,0.3608]
[1732301863475,0.3608,99066.0,99057.0,0.0655]
[1732301863674,0.050426,99060.0,99057.0,0.0655]
[1732301864378,0.3608,99066.0,99057.0,0.0655]
[1732301864582,0.02988941,99072.0,99057.0,0.0655]
[1732301864779,0.050425,99062.0,99057.0,0.0655]
[1732301864980,0.0315,99073.0,99057.0,0.0655]
[1732301865176,0.050423,99066.0,99057.0,0.0655]
[1732301865379,0.050424,99064.0,99057.0,0.0655]
[1732301865579,0.02014208,99063.0,99057.0,0.4263]
[1732301866389,0.07056158,99074.0,99057.0,0.4263]
[1732301866688,0.02014258,99074.0,99066.0,0.3608]
[1732301866883,0.050422,99067.0,99066.0,0.3608]
[1732301867477,0.05042,99073.0,99066.0,0.3608]
[1732301867679,0.050421,99070.0,99066.0,0.3608]
[1732301867880,0.02014258,99074.0,99066.0,0.3608]
[1732301868286,0.050421,99070.0,99066.0,0.3608]
[1732301868983,0.02014258,99074.0,99066.0,0.3608]
[1732301869181,0.050422,99067.0,99066.0,0.3608]
[1732301869383,0.3608,99068.0,99057.0,0.3917283]
[1732301869583,0.050427,99058.0,99057.0,0.3917283]
[1732301869988,0.050427,99058.0,99057.0,0.3608]
[1732301870787,0.050427,99058.0,99044.0,0.12344]
[1732301871100,0.09771461,99060.0,99044.0,0.12344]
[1732301871290,0.033,99073.0,99059.0,0.7216]
[1732301871587,0.02014258,99090.0,99072.0,0.3608]
[1732301871778,0.02014258,99106.0,99074.0,0.3608]
[1732301871985,0.02014258,99106.0,99102.0,0.3608]
[1732301872377,0.050404,99103.0,99102.0,0.3608]
[1732301872691,0.02014258,99106.0,99102.0,0.3608]
[1732301873182,0.07054558,99106.0,99102.0,0.3608]
[1732301873387,0.050403,99105.0,99102.0,0.3608]
[1732301873594,0.02014258,99106.0,99102.0,0.3608]
[1732301873780,0.050403,99105.0,99102.0,0.3608]
[1732301873984,0.02014258,99106.0,99102.0,0.3608]
[1732301874484,0.02014258,99106.0,99102.0,0.15163379]
[1732301875982,0.095,99117.0,99102.0,0.15163379]
[1732301876184,0.00151406,99118.0,99116.0,0.3608]
[1732301881092,0.050397,99117.0,99116.0,0.3608]
[1732301881292,0.00151406,99118.0,99116.0,0.3608]
[1732301881890,0.050397,99117.0,99116.0,0.3608]
[1732301882281,0.00151406,99118.0,99116.0,0.3608]
[1732301882990,0.050397,99117.0,99116.0,0.3608]
[1732301884288,0.00151406,99118.0,99116.0,0.3608]
[1732301888100,0.00151406,99118.0,99117.0,0.0333]
[1732301888397,0.00151406,99118.0,99117.0,0.15086]
[1732301889802,0.00151406,99118.0,99117.0,0.3027496]
[1732301890194,0.0654,99143.0,99117.0,0.3027496]
[1732301890393,0.0654,99143.0,99135.0,0.3608]
[1732301894898,0.0654,99143.0,99122.0,0.15056]
[1732301895094,0.09771461,99132.0,99122.0,0.03037693]
[1732301895295,0.0313,99131.0,99110.0,0.09771461]
[1732301895895,0.0313,99131.0,99111.0,0.3608]
[1732301896399,0.09771461,99130.0,99111.0,0.3608]
[1732301897504,0.0313,99131.0,99111.0,0.3608]
[1732301897692,0.0313,99131.0,99111.0,0.39147609]
[1732301899797,0.0313,99131.0,99119.0,0.3608]
[1732301900494,0.3608,99136.0,99119.0,0.3608]
[1732301900703,0.3608,99136.0,99120.0,0.12991461]
[1732301901011,0.3608,99136.0,99120.0,0.0322]
[1732301901201,0.09771461,99130.0,99120.0,0.0322]
[1732301901399,0.3608,99136.0,99120.0,0.0322]
[1732301901600,0.39173864,99136.0,99120.0,0.0322]
[1732301902505,0.3608,99128.0,99111.0,0.03207609]
[1732301902700,0.3608,99128.0,99111.0,0.03067609]
[1732301902899,0.3608,99128.0,99110.0,0.3608]
[1732301905905,0.02012485,99121.0,99110.0,0.3608]
[1732301909210,0.09771461,99120.0,99110.0,0.3608]
[1732301909511,0.02012485,99121.0,99110.0,0.3608]
[1732301910602,0.02012485,99121.0,99110.0,0.45851461]
[1732301910804,0.02012485,99121.0,99120.0,0.3608]
[1732301911409,0.02012485,99121.0,99110.0,0.09771461]
[1732301911818,0.02012485,99121.0,99109.0,0.3608]
[1732301912002,0.09771461,99120.0,99109.0,0.3608]
[1732301912202,0.02012485,99121.0,99109.0,0.3608]
[1732301913010,0.02012485,99121.0,99107.0,0.03070647]
[1732301913011,0.3608,99114.0,99107.0,0.03070647]
[1732301913217,0.3608,99114.0,99101.0,0.0324]
[1732301913616,0.09771461,99111.0,99093.0,0.0315]
[1732301915009,0.09771461,99103.0,99091.0,0.0312]
[1732301915414,0.3608,99106.0,99091.0,0.0312]
[1732301915608,0.3608,99106.0,99094.0,0.3608]
[1732301918225,0.6608,99106.0,99090.0,0.00151353]
[1732301918513,0.02013119,99099.0,99090.0,0.03180822]
[1732301918718,0.0933,99098.0,99090.0,0.00151353]
[1732301920219,0.02013119,99099.0,99090.0,0.00151353]
[1732301921321,0.02013119,99099.0,99090.0,0.03136235]
[1732301921524,0.02013119,99099.0,99091.0,0.0633]
[1732301923416,0.02013119,99099.0,99090.0,0.00151353]
[1732301923628,0.3608,99097.0,99090.0,0.00151353]
[1732301926521,0.66356,99096.0,99090.0,0.00151353]
[1732301926720,0.09771461,99090.0,99076.0,0.00145]
[1732301926915,0.3608,99082.0,99076.0,0.00145]
[1732301930630,0.3608,99082.0,99068.0,0.03033081]
[1732301930823,0.3608,99082.0,99066.0,0.3608]
[1732301932727,0.09771461,99090.0,99077.0,0.3608]
[1732301932928,0.02013836,99091.0,99086.0,0.3608]
[1732301933121,0.02013836,99091.0,99087.0,0.0324]
[1732301933422,0.02013836,99091.0,99087.0,0.0643]
[1732301934127,0.3608,99104.0,99087.0,0.0643]
[1732301935024,0.39072974,99104.0,99087.0,0.0643]
[1732301935220,0.39072974,99104.0,99087.0,0.0945383]